Cogmind - Beta 11 X7 @@@ ROGUE MODE // 2021.10.08 @ 23:39:07 Player: IceBox Result: Destroyed by as-49233 with Assembled Blade Performance ------------- Evolutions (0) 0 Regions Visited (4) 800 Robots Destroyed (24) 120 Value Destroyed (549) 549 Prototype IDs (3) 60 Alien Tech Used (0) 0 Bonus (0) 0 TOTAL SCORE: 1529 Bonus ------- None Cogmind --------- Core Integrity 0/250 Matter 291/300 Energy 250/250 System Corruption 0% Temperature Cool (0) Movement Rolling (110) Ox2 Location -9/Mines Parts ------- > --- POWER (1) -------- Ion Engine > --- PROPULSION (2) --- Wheel Wheel > --- UTILITY (2) ------ High-capacity Storage Unit Light Armor Plating > --- WEAPON (2) ------- Assault Rifle > --- INVENTORY (20) --- Ion Engine Improved Ion Engine Light Treads Light Treads Light Treads Light Treads Light Treads Huge Storage Unit Experimental Sensor Array Improved Terrain Scanner Light Armor Plating Beam Rifle Beam Rifle Light EM Pulse Cannon Light Assault Rifle Light Assault Rifle Light Assault Rifle Grenade Launcher Heavy Explosive Trap Peak State ------------ > --- POWER ------------ Ion Engine > --- PROPULSION ------- Wheel Wheel > --- UTILITY ---------- High-capacity Storage Unit Experimental Sensor Array > --- WEAPON ----------- Assault Rifle Assault Rifle > --- INVENTORY -------- Ion Engine Ion Engine Improved Ion Engine Light Treads Light Treads Light Treads Light Treads Improved Heat Sink Large Storage Unit Huge Storage Unit Improved Terrain Scanner Light Armor Plating Light Armor Plating Beam Rifle Light Assault Rifle Light Assault Rifle Grenade Launcher Grenade Launcher [Rating: 17] Favorites ----------- Power Ion Engine Engine Ion Engine Propulsion Wheel Treads Light Treads Leg Aluminum Leg Wheel Wheel Utility High-capacity Storage Unit Device Experimental Sensor Array Storage High-capacity Storage Unit Processor Signal Interpreter Protection Light Armor Plating Weapon Assault Rifle Ballistic Gun Assault Rifle Launcher Grenade Launcher Build | -11 -10 -10 -10 -9 ------- Run | Scr Mat Min Exi Min Slots Evolved . | . . . . . Power . | . . . . . Propulsion . | . . . . . Utility . | . . . . . Weapon . | . . . . . Parts Attached 33 | 2 14 8 6 3 Power 4 | . 2 . 2 . Engine 4 | . 2 . 2 . Core . | . . . . . Reactor . | . . . . . Propulsion 11 | 2 4 5 . . Treads 1 | . . 1 . . Leg . | . . . . . Wheel 10 | 2 4 4 . . Hover . | . . . . . Flight . | . . . . . Utility 10 | . 3 3 4 . Device 1 | . . 1 . . Storage 3 | . 1 . 2 . Processor 1 | . 1 . . . Hackware . | . . . . . Protection 5 | . 1 2 2 . Artifact . | . . . . . Weapon 8 | . 5 . . 3 Energy Gun . | . . . . . Energy Cannon . | . . . . . Ballistic Gun 7 | . 5 . . 2 Ballistic Cannon . | . . . . . Launcher 1 | . . . . 1 Special Weapon . | . . . . . Impact Weapon . | . . . . . Slashing Weapon . | . . . . . Piercing Weapon . | . . . . . Special Melee Weapon . | . . . . . Unidentified Prototypes 1 | . . 1 . . Parts Lost 4 | . . 2 . 2 Power . | . . . . . Propulsion 2 | . . 2 . . Utility . | . . . . . Weapon 2 | . . . . 2 Highest Loss Streak 1 | . . 1 . 1 Average Slot Usage (%) 97 | . 93 99 100 98 Engine 13 | . 13 14 14 14 Wheel 27 | . 28 27 28 28 Storage 14 | . 14 14 14 14 Processor 1 | . 2 . . . Protection 11 | . 5 13 14 14 Ballistic Gun 27 | . 27 28 28 23 Naked Turns . | . . . . . Heaviest Build 52 | 12 50 52 52 51 Greatest Support 32 | 32 32 32 20 20 Greatest Overweight (x) 3 | . 2 3 2 2 Average Overweight (x) 1 | . . 1 2 2 Largest Inventory Capacity 20 | 8 20 20 20 20 Average Capacity 19 | 8 17 20 20 20 Most Carried 20 | 6 20 20 20 20 Average Carried 17 | 6 14 19 19 19 Final Capacity 20 | 8 20 20 20 20 Final Carried 20 | 6 20 20 20 19 Class Distribution -------------------- 100% | Mutant Dominant Class ---------------- Mutant | -10/Materials Mutant | -10/Mines Mutant | -10/Exiles Mutant | -9/Mines Resources | -11 -10 -10 -10 -9 ----------- Run | Scr Mat Min Exi Min Matter Collected 940 | 194 448 130 . 168 Remotely . | . . . . . Salvage Created 718 | . 500 126 . 92 Parts 50 | . 29 12 . 9 Haulers Intercepted 2 | . 2 . . . Recyclers Shooed 3 | . 3 . . . Parts Field Recycled . | . . . . . Retrieved Matter . | . . . . . Parts Self-Destructed . | . . . . . Prevented . | . . . . . Kills | -11 -10 -10 -10 -9 ------- Run | Scr Mat Min Exi Min Combat Hostiles Destroyed 20 | . 9 5 . 6 Guns 18 | . 9 5 . 4 AOE 2 | . . . . 2 Classes Destroyed 5 | . 5 . . . Hauler 2 | . 2 . . . Recycler 1 | . 1 . . . Watcher 1 | . 1 . . . Swarmer 9 | . 3 3 . 3 Grunt 11 | . 6 2 . 3 Best Kill Streak 3 | . 3 3 . 3 Combat Bots Only 3 | . 3 3 . 3 Max Kills in Single Turn 2 | . 1 2 . 2 Gunslinging 1 | . . 1 . 1 Exploded 1 | . . . . 1 Melee . | . . . . . Uniques/NPCs Destroyed . | . . . . . Combat | -11 -10 -10 -10 -9 -------- Run | Scr Mat Min Exi Min Damage Taken 861 | . 327 181 . 353 Core 282 | . 103 69 . 110 Absorbed by Shields . | . . . . . Core Remaining (%) 100 | 100 . . . . Volleys Fired 75 | . 47 10 . 18 Largest 2 | . 2 2 . 2 Hottest 40 | . 40 40 . 40 Shots Fired 136 | . 94 20 . 22 Gun 130 | . 94 20 . 16 Cannon . | . . . . . Launcher 6 | . . . . 6 Special . | . . . . . Kinetic 130 | . 94 20 . 16 Thermal . | . . . . . Explosive 6 | . . . . 6 Electromagnetic . | . . . . . Robot Hit Streak 12 | . 9 12 . 6 Robot Miss Streak 3 | . 3 3 . 1 Penetration Max . | . . . . . Secondary Targets 4 | . . 3 . 1 Max Gunslinging Chain 1 | . . 1 . 1 Shots Hit Robots 87 | . 57 16 . 14 Core Hits 42 | . 22 8 . 12 Critical Kills . | . . . . . Critical Parts Destroyed . | . . . . . Critical Strikes . | . . . . . Melee Attacks . | . . . . . Impact . | . . . . . Slashing . | . . . . . Piercing . | . . . . . Sneak Attacks . | . . . . . Combat Hostiles . | . . . . . Follow-up Attacks . | . . . . . Damage Inflicted 1318 | . 741 206 . 371 Guns 1064 | . 741 206 . 117 Cannons . | . . . . . Explosions 254 | . . . . 254 Melee . | . . . . . Ramming . | . . . . . Kinetic 1064 | . 741 206 . 117 Thermal . | . . . . . Explosive 254 | . . . . 254 Electromagnetic . | . . . . . Impact . | . . . . . Slashing . | . . . . . Piercing . | . . . . . Highest Corruption . | . . . . . Average Corruption . | . . . . . Corruption Purged . | . . . . . Overload Shots . | . . . . . Overflow Damage . | . . . . . Projectiles . | . . . . . Explosions . | . . . . . Melee . | . . . . . Knockbacks . | . . . . . Impact . | . . . . . Kinetic . | . . . . . Secondary . | . . . . . Self-Inflicted Damage 23 | . . . . 23 Shots 1 | . . . . 1 Rammed . | . . . . . Targets Rammed . | . . . . . Kicked . | . . . . . Crushed . | . . . . . Highest Temperature 29 | . 2 10 . 29 Average Temperature 7 | . 2 4 . 11 Received Heat Transfer 288 | . 153 84 . 51 Siege Activations . | . . . . . Robots Corrupted . | . . . . . Combat Hostiles . | . . . . . Parts Fried . | . . . . . Impact Corruptions . | . . . . . Robots Melted . | . . . . . Combat Hostiles . | . . . . . Parts Melted . | . . . . . Heat Transferred . | . . . . . Parts Sabotaged . | . . . . . Parts Stolen . | . . . . . Parts Stripped . | . . . . . Power Chain Reactions . | . . . . . Missiles Intercepted . | . . . . . Alert | -11 -10 -10 -10 -9 ------- Run | Scr Mat Min Exi Min Peak Influence 238 | . 238 193 . 155 Initial 78 | . . 78 . . Average 119 | . 137 97 . 115 Maximum Alert Level 1 | . 1 . . . Low Security (%) 93 | 100 86 100 . 100 Level 1 6 | . 13 . . . Level 2 . | . . . . . Level 3 . | . . . . . Level 4 . | . . . . . Level 5 . | . . . . . High Security . | . . . . . Max Security . | . . . . . Squads Dispatched 3 | . 2 1 . . Investigation 1 | . . 1 . . Extermination . | . . . . . Reinforcement 2 | . 2 . . . Assault . | . . . . . Garrison . | . . . . . Intercept . | . . . . . Construction Impeded . | . . . . . Haulers Reinforced . | . . . . . Active Scanning Responses . | . . . . . Cargo Convoy Interrupts . | . . . . . Stealth | -11 -10 -10 -10 -9 --------- Run | Scr Mat Min Exi Min Distress Signals 1 | . 1 . . . Communications Jammed . | . . . . . Distress Signals . | . . . . . Times Spotted 36 | . 18 8 . 10 Peak Tracking Total 5 | . 4 3 . 5 Tactical Retreats 3 | . 2 . . 1 Traps | -11 -10 -10 -10 -9 ------- Run | Scr Mat Min Exi Min Traps Triggered 4 | . 4 . . . Indirectly . | . . . . . Trap Hack Attempts . | . . . . . Triggered . | . . . . . Disarmed . | . . . . . Reprogrammed . | . . . . . Reused . | . . . . . Traps Extracted . | . . . . . Installed 1 | . . 1 . . Triggered 1 | . . . . 1 Machines | -11 -10 -10 -10 -9 ---------- Run | Scr Mat Min Exi Min Machines Disabled 2 | . 1 . . 1 Max in Single Turn 1 | . 1 . . 1 Machines Sabotaged . | . . . . . Garrisons Compromised . | . . . . . Overloaded Fab Kills . | . . . . . Fab Network Shutdowns . | . . . . . Hacking | -11 -10 -10 -10 -9 --------- Run | Scr Mat Min Exi Min Machines Accessed 9 | . 4 1 4 . Terminals 3 | . 3 . . . Fabricators . | . . . . . Repair Stations . | . . . . . Recycling Units 1 | . 1 . . . Scanalyzers . | . . . . . Garrison Access . | . . . . . Total Hacks 13 | . 8 1 4 . Successful 10 | . 5 1 4 . Failed 3 | . 3 . . . Catastrophic . | . . . . . Database Lockouts . | . . . . . Manual 4 | . 4 . . . Terminals 7 | . 7 . . . Fabricators . | . . . . . Repair Stations . | . . . . . Recycling Units 1 | . 1 . . . Scanalyzers . | . . . . . Garrison Access . | . . . . . Terminal Hacks 7 | . 2 1 4 . Record 4 | . . . 4 . Robot Analysis 1 | . 1 . . . Prototype ID Bank 1 | . 1 . . . Open Door 1 | . . 1 . . Fabricator Hacks . | . . . . . Repair Station Hacks . | . . . . . Recycling Unit Hacks 1 | . 1 . . . Report Inventory 1 | . 1 . . . Scanalyzer . | . . . . . Garrison Access Hacks . | . . . . . Unauthorized Hacks 2 | . 2 . . . Terminals 2 | . 2 . . . Track 1 | . 1 . . . Botnet 1 | . 1 . . . Fabricators . | . . . . . Repair Stations . | . . . . . Recycling Units . | . . . . . Scanalyzers . | . . . . . Garrison Access . | . . . . . Data Cores Recovered . | . . . . . Used . | . . . . . Hacking Detections 3 | . 3 . . . Full Trace Events . | . . . . . Feedback Events . | . . . . . Feedback Blocked . | . . . . . Robot Schematics Acquired . | . . . . . Robots Built . | . . . . . Matter . | . . . . . Time . | . . . . . Total Robot Build Rating . | . . . . . Part Schematics Acquired . | . . . . . Parts Built . | . . . . . Matter . | . . . . . Time . | . . . . . Total Part Build Rating . | . . . . . Parts Repaired . | . . . . . Time . | . . . . . Parts Recycled . | . . . . . Recycled Matter . | . . . . . Retrieved Matter . | . . . . . Retrieved Components . | . . . . . Parts Scanalyzed . | . . . . . Part Schematics Acquired . | . . . . . Parts Damaged . | . . . . . Bothacking | -11 -10 -10 -10 -9 ------------ Run | Scr Mat Min Exi Min Used RIF Installer . | . . . . . Robots Hacked . | . . . . . Non-combat . | . . . . . Combat . | . . . . . Robot Hacks Applied . | . . . . . Relay Couplers Released . | . . . . . Robots Rewired . | . . . . . Allies Hacked . | . . . . . Hacks Repelled . | . . . . . Allies | -11 -10 -10 -10 -9 -------- Run | Scr Mat Min Exi Min Total Allies 2 | . . 2 . . Largest Group 2 | . . 2 2 . Highest-Rated Group 45 | . . 45 45 . Highest-Rated Ally 31 | . . 31 31 . Total Orders . | . . . . . Ally Attacks . | . . . . . Total Damage . | . . . . . Kills . | . . . . . Allies Corrupted . | . . . . . Allies Melted . | . . . . . Intel | -11 -10 -10 -10 -9 ------- Run | Scr Mat Min Exi Min Robot Analysis Total 1 | . 1 . . . Derelict Logs Recovered 2 | . . 1 . 1 Drone Launches . | . . . . . Drone Recoveries . | . . . . . Exploration | -11 -10 -10 -10 -9 ------------- Run | Scr Mat Min Exi Min Turns Passed 2309 | 3 776 624 787 119 Spaces Moved 1723 | 1 478 477 701 66 Core . | . . . . . Treads . | . . . . . Legs . | . . . . . Wheels 1723 | 1 478 477 701 66 Hover . | . . . . . Flight . | . . . . . Fastest Speed 100 | 100 100 110 110 110 Average Speed 110 | 100 109 112 110 110 Slowest Speed 145 | 100 130 145 110 110 Overloaded Moves . | . . . . . Propulsion Burnouts . | . . . . . Robots Hopped . | . . . . . Cave-ins Triggered . | . . . . . Exploration Rate (%) 53 | 2 63 89 94 21 Regions Visited 4 Branch Regions 3 Pre-discovered Areas . | . . . . . Known Exits Taken 1 | . 1 . . . Unknown Exits Taken 3 | 1 . 1 1 . Scrap Searched 1 | . . . . 1 Spaces Dug 4 | . . . . 4 Terrain Destroyed 35 | . . . . 35 Melee . | . . . . . Projectile . | . . . . . AOE 35 | . . . . 35 Terrain Rammed . | . . . . . Walls Destroyed . | . . . . . Machines Disabled . | . . . . . Actions | -11 -10 -10 -10 -9 --------- Run | Scr Mat Min Exi Min Total 2000 | 2 638 548 719 93 Wait 87 | . 66 21 . . Move 1719 | . 477 476 700 66 Hop . | . . . . . Pick Up 51 | . 26 17 5 3 Fast Attach 8 | . 6 . 2 . Attach 11 | . 6 3 1 1 Detach 2 | . 1 1 . . Swap 14 | 2 2 5 3 2 Drop 32 | . 7 14 8 3 Fire 75 | . 47 10 . 18 Melee . | . . . . . Ram . | . . . . . Kick . | . . . . . Crush . | . . . . . Escape Stasis . | . . . . . Rewire . | . . . . . Trap 1 | . . 1 . . Miscellaneous . | . . . . . Route ------- -11/Scrapyard -10/Materials (discovered 3 exits: *Mat x2 / *Min) -10/Mines (discovered 3 exits: *Mat x2 / *Exi) -10/Exiles (discovered 2 exits: [*Min x2]) -9/Mines History --------- Turn | Location | Event 4 | -11/Scrapyard | Discovered new exit (range 0) 4 | -11/Scrapyard | Entered Materials 323 | -10/Materials | Build established: Mutant 417 | -10/Materials | Discovered new exit (range 3) 486 | -10/Materials | Discovered new exit (range 16) 628 | -10/Materials | Discovered new exit (range 3) 633 | -10/Materials | Identified exit to Materials 779 | -10/Materials | Identified exit to Mines 780 | -10/Materials | Entered Mines 785 | -10/Mines | Core integrity fell below 50% 826 | -10/Mines | Met a Derelict bent on vengeance 867 | -10/Mines | Met a Derelict shopkeep closing up shop 905 | -10/Mines | Found a damaged Exp. Sensor Array with a note attached 908 | -10/Mines | Found Prototype Device 952 | -10/Mines | Discovered exit to Materials (range 9) 1075 | -10/Mines | Discovered exit to Materials (range 15) 1096 | -10/Mines | Joined a pair of Derelicts in attacking an 0b10 outpost 1122 | -10/Mines | Identified Exp. Sensor Array 1244 | -10/Mines | Found a hidden stash of uninstalled traps 1353 | -10/Mines | Learned Materials interactive machine intel 1384 | -10/Mines | Deemed a non-threat by the Exiles lab entrance 1384 | -10/Mines | Discovered new exit (range 5) 1404 | -10/Mines | Entered Exiles 1404 | -10/Exiles | Found Exiles lab abandoned 1404 | -10/Exiles | Accompanied by 2 allies 1421 | -10/Exiles | Discovered new exit (range 15) 1434 | -10/Exiles | Led the pair of lost Derelicts to a safe place 2035 | -10/Exiles | Discovered new exit (range 12) 2191 | -10/Exiles | Entered Mines 2226 | -9/Mines | Learned Materials emergency access door positions 2234 | -9/Mines | Core integrity fell below 20% 2267 | -9/Mines | Assembled infested the area 2310 | -9/Mines | Destroyed by as-49233 with Assembled Blade Last Messages --------------- squad. 02269_ The unstable cave ceiling collapses. 02270_ Acquired 10 matter. 02272_ U-05 Engineer lays Concrete. 02272_ R-06 Scavenger collects Lgt. Nuclear Core. 02274_ U-05 Engineer lays Concrete. 02274_ Acquired 9 matter. 02275_ U-05 Engineer lays Concrete. 02276_ U-05 Engineer builds a Wall. 02277_ Acquired 12 matter. 02281_ U-05 Engineer lays Concrete. 02282_ U-05 Engineer builds a Wall. 02283_ Extracted 64 matter. 02286_ U-05 Engineer builds a Wall. 02289_ as-36837 suffers critical hit (Destroy). 02295_ U-05 Engineer builds a Wall. 02298_ U-05 Engineer lays Concrete. 02301_ U-05 Engineer destroyed. 02305_ Lgt. Assault Rifle destroyed. 02307_ The unstable cave ceiling collapses. Map ----- +----------------------------------------------------+ | | | | | | | | | | | | | | | ?????????????????????????????????????????????????? | | ?????????????????????????????????????????????????? | | ?????????????????????????????????????????????????? | | ?????#???????????????????????????????????????????? | | ????# ???????????????????????????????????###??? | | ???# ???????????????????????????????# ##?? | | ?? ##################??????????# #?? | | ?? #?????????? #?? | | ?? #?????????? #?? | | ?? ######## #### #????????## #?? | | ??? ??????????# !! #?# ####?????# ???? | | ??? ??????????????# ! ### ##???## #????? | | ??????????????????## ! ! ## #??## #?????? | | ???????????######## !! ! ## #### #?????? | | ???????????# !%= #?# ## ##????? | | ???????????# "" = ## ####?# = ####?? | | ???????????# # #a&####### ##? | | ???????????# " [ aa&* =* = #? | | ???????????# # # !@ = #? | | ???????????### #########r #? | | ????????????##### ###?????# # | | ????????????????### #####??????# # | | ??????????????????###??????????# ### # | | ???????????????????????????????## ##?## ## | | ????????????????????????????????####???## #? | | ????????????????????????????????????????## ## ##? | | ?????????????????????????????????????????? #? #?? | | ?????????????????????????????????????????? #? #?? | | ?????????????????????????????????????????? #? #?? | | ?????????????????????????????????????????? #?? #?? | | ?????????????????????????????????????????? ?? #?? | | ??????????????????????????????????????????#??? ??? | | ?????????????????????????????????????????????????? | | ?????????????????????????????????????????????????? | | ?????????????????????????????????????????????????? | | ?????????????????????????????????????????????????? | | ?????????????????????????????????????????????????? | | ?????????????????????????????????????????????????? | | ?????????????????????????????????????????????????? | | ?????????????????????????????????????????????????? | | ?????????????????????????????????????????????????? | | ?????????????????????????????????????????????????? | | ?????????????????????????????????????????????????? | +----------------------------------------------------+ Best States ------------- Heat Dissipation 25 Energy Generation 10 Energy Capacity 250 Matter Stores 300 Matter Capacity 300 Sight Range 16 Terrain Scan Density 10 Armor Coverage 150 Power Shielding 33 Evasion (%) 40 Recoil Reduction 1 Item Schematics ----------------- None Robot Schematics ------------------ None Fabricated ------------ Nothing Alien Tech Used ----------------- None Achievements -------------- None Challenges ------------ None Game ------ Seed ImpulseGammaCycler Manual? 0 Play Time 00:25:44 Cumulative 76.8 hours Start 2021.10.05 @ 22:31:46 End 2021.10.08 @ 23:39:07 Sessions 9 Manual Loads 0 Difficulty Rogue Special Mode None Game No. 51 Rogue 50 Adventurer 1 Explorer 0 Win Type - Total 2 Types 2/0/0/0/0/0/0/0/0 Lore% 37 Gallery% 44 Achievement% 41 Wizard Run 0 Options --------- ASCII 0 Keyboard 1 Movement Vi Keybinds 0 Fullscreen 2 Font 18/TerminusBold Map View 76x50 Tactical HUD 1 Map Filters NONE Filters NONE Steam 1 RUN: a5e0d978-1ca0-4bf3-a32e-198b877325d8